fUSD/lending_fUSD_20250328
["ID","MTS","AMOUNT","RATE_DAILY","PERIOD"]
[356767785,1743144635422,-411.334808,0.00036633,7]
[356767786,1743144635431,-152.90746,0.00036633,7]
[356767787,1743144635440,-151.0,0.00036633,7]
[356767788,1743144635450,-30176.0966423,0.00036633,3]
[356767789,1743144635460,-151.0,0.00036643,7]
[356767790,1743144635469,-151.0,0.00036643,7]
[356767791,1743144635479,-170.816106,0.00036643,7]
[356767792,1743144635489,-170.816106,0.00036643,7]
[356767793,1743144635499,-1406.223436,0.00036643,7]
[356767794,1743144635508,-411.334808,0.00036643,7]
[356767795,1743144635517,-1406.223436,0.00036643,7]
[356767796,1743144635529,-411.334808,0.00036643,7]
[356767797,1743144635539,-151.0,0.00036643,7]
[356767798,1743144635549,-84937.33924097,0.00036643,2]
[356767799,1743144635558,-516.96,0.00036754,2]
[356767800,1743144635568,-820.79960814,0.00036833,2]
[356767801,1743144635578,-550.0,0.00037,2]
[356767802,1743144635587,-154.39,0.0003743,120]
[356767803,1743144635597,-150.0,0.00037491,2]
[356767804,1743144635607,-1000.0,0.00037575,5]
[356767805,1743144635616,-2000.0,0.000378,2]
[356767806,1743144635626,-414.01843505,0.00037866,2]
[356767807,1743144635636,-1019.0,0.00038,6]
[356767808,1743144635645,-1002.0,0.00038,5]
[356767809,1743144635654,-636.4,0.00038,2]
[356767810,1743144635664,-809.4,0.00038157,2]
[356767811,1743144635674,-452.8,0.00038157,2]
[356767812,1743144635683,-443.84,0.00038157,2]
[356767813,1743144635693,-782.39,0.00038157,2]
[356767814,1743144635702,-443.84,0.00038157,2]
[356767815,1743144635712,-782.39,0.00038157,2]
[356767816,1743144635721,-782.39,0.00038157,2]
[356767817,1743144635730,-443.84,0.00038157,2]
[356767818,1743144635740,-782.39,0.00038157,2]
[356767819,1743144635749,-150.87,0.00038294,2]
[356767820,1743144635759,-150.0,0.00038294,2]
[356767821,1743144635768,-150.0,0.00038294,2]
[356767822,1743144635779,-150.0,0.00038294,2]
[356767823,1743144635789,-150.0,0.00038294,2]
[356767824,1743144635798,-150.0,0.00038294,2]
[356767825,1743144635808,-150.0,0.00038294,2]
[356767826,1743144635817,-150.0,0.00038428,2]
[356767827,1743144635826,-191.37,0.00038443,2]
[356767828,1743144635836,-609.34,0.00038443,2]
[356767829,1743144635845,-1000.0,0.00038742,2]
[356767830,1743144635854,-820.79960814,0.00038844,2]
[356767831,1743144635864,-173.49004437,0.0003889,2]
[356767832,1743144635873,-181.36,0.00038902,120]
[356767833,1743144635883,-173.0194802,0.00038926,2]
[356767834,1743144635892,-5162.3523877,0.00038935,2]
[356767835,1743144635903,-150.67,0.00038943,2]
[356767836,1743144635912,-15088.0483212,0.00038953,3]
[356767837,1743144635922,-9306.5291775,0.00038962,2]
[356767838,1743144635931,-150.67,0.00038969,2]
[356767839,1743144635941,-120704.386569,0.00038979,3]
[356767840,1743144635951,-60352.1932847,0.0003898,3]
[356767841,1743144635961,-15088.0483212,0.0003898,3]
[356767842,1743144635971,-300.0,0.00038988,10]
[356767843,1743144635981,-311.66665618,0.00038989,10]
[356767844,1743144635991,-151.0,0.00038989,14]
[356767845,1743144636097,-170.816106,0.00038989,14]
[356767846,1743144636124,-170.816106,0.00038989,14]
[356767847,1743144636134,-1406.223436,0.00038989,14]
[356767848,1743144636145,-411.334808,0.00038989,14]
[356767849,1743144636156,-1406.223436,0.00038989,14]
[356767850,1743144636166,-411.334808,0.00038989,14]
[356767851,1743144636175,-187.294448,0.00038989,14]
[356767852,1743144636185,-151.0,0.0003899,14]
[356767853,1743144636194,-170.816106,0.0003899,14]
[356767854,1743144636205,-170.816106,0.0003899,14]
[356767855,1743144636214,-1406.223436,0.0003899,14]
[356767856,1743144636224,-411.334808,0.0003899,14]
[356767857,1743144636234,-1406.223436,0.0003899,14]
[356767858,1743144636244,-411.334808,0.0003899,14]
[356767859,1743144636253,-13568.26635196,0.0003899,3]
[356767860,1743144636324,-1519.78196924,0.0003899,3]
[356767861,1743144636335,-841.0,0.00039,7]
[356767862,1743144636344,-600.0,0.00039,2]
[356767863,1743144636354,-2182.84261389,0.00039,2]
[356767864,1743144636365,-4309.6899302,0.00039,2]
[356767865,1743144636376,-1352.95826192,0.00039,2]
[356767866,1743144636387,-5876.71821526,0.00039,2]
[356767867,1743144636398,-4178.856,0.00039,2]
[356767868,1743144636411,-787.72537109,0.00039,2]
[356767869,1743144636422,-367.35042861,0.00039,2]
[356767881,1743144638088,-1424.99413221,0.00039,2]
[356767882,1743144638100,-987.42017712,0.00039,2]
[356767883,1743144638223,-786.946942,0.00039,2]
[356767890,1743144640541,-1328.36405114,0.00039,2]
[356767907,1743144644824,-151.0,0.00028999,7]
[356767908,1743144644833,-618.04385006,0.00039,2]
[356767909,1743144644852,-724.35005528,0.00039,2]
[356767910,1743144644865,-754.32475265,0.00039,2]
[356767911,1743144644876,-293.75433028,0.00039,2]
[356767912,1743144644887,-1711.62852913,0.00039,2]
[356767913,1743144644899,-1642.85313383,0.00039,2]
[356767914,1743144644910,-619.2449657,0.00039,2]
[356767915,1743144644920,-51.93425963,0.00039,2]
[356767916,1743144644930,-151.0,0.00039,14]
[356767917,1743144644956,-170.816106,0.00039,14]
[356767918,1743144644965,-170.816106,0.00039,14]
[356767919,1743144644974,-1406.223436,0.00039,14]
[356767920,1743144644984,-1406.223436,0.00039,14]
[356767921,1743144644993,-411.334808,0.00039,14]
[356767922,1743144645003,-363.58030762,0.00039018,2]
[356767923,1743144645014,-153.37969238,0.00039018,2]
[356767924,1743144645023,-521.16,0.00039365,2]
[356767925,1743144645032,-150.0,0.00039366,2]
[356767926,1743144645044,-161.35,0.00039786,120]
[356767927,1743144645053,-237.19803,0.00039831,34]
[356767928,1743144645062,-12158.25230564,0.00039932,3]
[356767942,1743144646040,-194.43052,0.000308,7]
[356767943,1743144646050,-2929.79601556,0.00039932,3]
[356767944,1743144646060,-150.67,0.00039949,2]
[356767946,1743144646070,-1660.66320833,0.00039951,3]
[356767947,1743145406567,869.63690444,0.00032596,120]
[356767948,1743145419644,721.02136468,0.00032596,120]
[356767976,1743145832292,-963.81641169,0.00023623,2]
[356767977,1743145832304,-4592.15331119,0.00023623,2]
[356767978,1743145832315,-2253.71798314,0.00023623,2]
[356767979,1743145832326,-1620.51027677,0.00023623,2]
[356767980,1743145832337,-803.28453,0.00023623,2]
[356767981,1743145832348,-1028.79,0.00023623,2]
[356767982,1743145832359,-750.37477044,0.00023623,2]
[356767983,1743145832370,-5583.21718968,0.00023623,2]
[356767984,1743145832379,-1017.88663696,0.00023645,2]
[356767985,1743145832388,-911.543,0.00023746,2]
[356767986,1743145832397,-544.533,0.00023746,2]
[356767987,1743145832406,-1090.532,0.00023746,2]
[356767988,1743145832415,-1364.855,0.00023746,2]
[356767989,1743145832424,-1120.624,0.00023746,2]
[356767990,1743145832433,-1000.0,0.00024734,2]
[356767991,1743145832442,-250.0,0.00025,2]
[356767992,1743145832451,-427.528,0.00026728,14]
[356767993,1743145832460,-1117.0,0.00026746,2]
[356767994,1743145832470,-178.32,0.00026849,2]
[356767995,1743145832480,-300.0,0.00027,2]
[356767996,1743145832489,-350.0,0.00029,2]
[356767997,1743145832498,-486.93633672,0.000307,2]
[356767998,1743145832510,-3994.38322229,0.0003079,2]
[356767999,1743145832521,-332.0,0.00030799,2]
[356768000,1743145832530,-21309.34384175,0.000308,2]
[356768001,1743145832542,-5669.24041241,0.000308,2]
[356768002,1743145832554,-3071.705,0.000308,2]
[356768003,1743145832565,-735.33477907,0.000308,2]
[356768004,1743145832576,-718.78087629,0.000308,2]
[356768005,1743145832590,-13006.82943429,0.000308,2]
[356768006,1743145832602,-4949.81285619,0.000308,2]
[356768007,1743145832611,-158.87,0.000308,2]
[356768008,1743145832620,-400.0,0.00031,2]
[356768009,1743145832629,-2000.0,0.000323,2]
[356768010,1743145832638,-178.32,0.00032646,2]
[356768011,1743145832648,-450.0,0.00033,2]
[356768012,1743145832657,-2036.95539856,0.00034072,2]
[356768013,1743145832668,-254.33428482,0.00034072,2]
[356768014,1743145832679,-51.44678105,0.00034072,2]
[356768015,1743145832688,-1081.66645696,0.00034072,2]
[356768016,1743145832698,-3243.04354304,0.00034072,2]
[356768017,1743145832707,-500.0,0.00035,2]
[356768018,1743145832716,-500.0,0.00035,2]
[356768019,1743145832725,-2000.0,0.000351,2]
[356768020,1743145832735,-1000.0,0.0003539,2]
[356768021,1743145832744,-150.0,0.00035868,7]
[356768022,1743145832753,-23900.0,0.00035955,2]
[356768023,1743145832763,-518.33,0.0003611,2]
[356768025,1743145832772,-550.0,0.00037,2]
[356768027,1743145832781,-606.3860446,0.00037075,2]
[356768028,1743145832790,-2173.57704905,0.000377,2]
[356768031,1743145832801,-4482.18945095,0.000377,2]
[356768033,1743145832810,-1576.5583,0.000377,2]
[356768035,1743145832819,-2000.0,0.000378,2]
[356768037,1743145832828,-154.74,0.00038046,2]
[356768039,1743145832837,-222.24,0.00038293,2]
[356768041,1743145832849,-353.47,0.00038293,2]
[356768043,1743145832858,-152.47,0.00038293,2]
[356768045,1743145832867,-346.77,0.00038293,2]
[356768047,1743145832876,-346.77,0.00038293,2]
[356768049,1743145832886,-346.77,0.00038293,2]
[356768051,1743145832895,-250.0,0.00038344,2]
[356768053,1743145832905,-900.75,0.00038346,2]
[356768054,1743145832914,-518.33,0.00038374,2]
[356768055,1743145832923,-178.32,0.00038443,2]
[356768056,1743145832932,-160.92,0.00038504,2]
[356768058,1743145832941,-234.59,0.00038522,2]
[356768060,1743145832951,-596.87,0.00038671,2]
[356768062,1743145832960,-8656.11134285,0.00038977,2]
[356768064,1743145832972,-600.0,0.00039,2]
[356768066,1743145832981,-154.74,0.00039333,2]
[356768068,1743145832990,-760.90208009,0.00039659,2]
[356768070,1743145832999,-19991.104,0.00039759,2]
[356768072,1743145833009,-9713.4726,0.00039759,2]
[356768074,1743145833018,-2500.0,0.000398,2]
[356768076,1743145833028,-1000.0,0.00039814,2]
[356768078,1743145833038,-16091.078,0.00039859,2]
[356768080,1743145833047,-1363.2743,0.00039859,2]
[356768082,1743145833056,-4005.10818452,0.00039859,2]
[356768083,1743145833068,-975.09804948,0.00039859,2]
[356768084,1743145833079,-1434.24613958,0.00039859,2]
[356768086,1743145833091,-272.69110707,0.00039859,2]
[356768088,1743145833103,-1097.14191935,0.00039859,2]
[356768090,1743145833112,-1000.0,0.000399,2]
[356768092,1743145833121,-158.13201,0.00039949,66]
[356768094,1743145833131,-692.07792081,0.00039959,2]
[356768096,1743145833140,-1375.9226055,0.00039959,2]
[356768097,1743145833150,-673.69183834,0.00039959,2]
[356768100,1743145833161,-433.999999,0.00039959,2]
[356768102,1743145833176,-1371.76289426,0.00039959,2]
[356768104,1743145833186,-165.38,0.00039969,2]
[356768106,1743145833195,-162.06,0.00039987,2]
[356768108,1743145833205,-246.49474763,0.0004,30]
[356768110,1743145833216,-4096.25009325,0.0004,2]
[356768112,1743145833229,-9215.87563297,0.0004,2]
[356768115,1743145833241,-1386.10575894,0.0004,2]
[356768117,1743145833253,-1837.46958801,0.0004,2]
[356768119,1743145833263,-2525.79662086,0.0004,120]
[356768121,1743145833273,-69.39431209,0.0004,2]
[356768123,1743145833284,-418.70036475,0.0004,2]
[356768130,1743145838155,-1000.0,0.00039759,2]
[356768132,1743145838165,-5596.03655,0.0004,2]
[356768134,1743145838206,-15.08742623,0.0004,2]
[356768135,1743145838216,-158.22289414,0.0004,120]
[356768136,1743145838226,-306.52132566,0.0004,5]
[356768137,1743145838238,-193.47867434,0.0004,5]
[356768138,1743145838248,-424.0,0.0004,120]
[356768139,1743145838258,-236.0516447,0.0004,120]
[356768140,1743145838267,-2000.0,0.000405,2]
[356768141,1743145838276,-154.74,0.0004062,2]
[356768142,1743145838285,-518.33,0.00040637,2]
[356768143,1743145838294,-760.90208007,0.00040641,15]
[356768144,1743145838303,-166.02867025,0.0004075,5]
[356768145,1743145838313,-200.0,0.00040985,2]
[356768146,1743145838322,-500.0,0.00040986,2]
[356768147,1743145838331,-161.83175454,0.00040996,28]
[356768148,1743145838340,-12.9271761,0.00041,120]
[356768149,1743145838352,-363.3628239,0.00041,120]
[356768150,1743145838362,-167.0,0.00041,14]
[356768151,1743145838371,-650.0,0.00041,2]
[356768152,1743145838381,-5081.0035196,0.00041086,3]
[356768153,1743145838392,-1893.07921605,0.00041086,3]
[356768154,1743145838406,-7690.1668913,0.00041086,3]
[356768155,1743145838416,-730.25731111,0.00041086,3]
[356768156,1743145838428,-301.91055826,0.00041086,3]
[356768157,1743145838440,-999.60496488,0.00041086,3]
[356768158,1743145838450,-204.28286273,0.00041096,90]
[356768159,1743145838544,-1795.71713727,0.00041096,90]
[356768160,1743145838554,-2000.0,0.00041096,90]
[356768161,1743145838563,-1404.28286273,0.00041096,90]
[356768162,1743145838574,-430.40989744,0.00041096,90]
[356768163,1743145838645,-165.30723983,0.00041096,90]
[356768164,1743145838654,-2000.0,0.00041096,90]
[356768165,1743145838664,-2000.0,0.00041096,90]
[356768166,1743145838675,-2000.0,0.00041096,90]
[356768167,1743145838684,-2000.0,0.00041096,90]
[356768168,1743145838694,-2000.0,0.00041096,90]
[356768169,1743145838703,-2000.0,0.00041096,90]
[356768170,1743145838712,-2000.0,0.00041096,90]
[356768171,1743145838721,-2000.0,0.00041096,90]
[356768172,1743145838731,-2000.0,0.00041096,90]
[356768173,1743145838740,-2000.0,0.00041096,90]
[356768175,1743145838749,-2000.0,0.00041096,90]
[356768177,1743145838758,-2000.0,0.00041096,90]
[356768179,1743145838767,-2000.0,0.00041096,90]
[356768180,1743145838776,-2000.0,0.00041096,90]
[356768182,1743145838785,-2000.0,0.00041096,90]
[356768184,1743145838794,-2000.0,0.00041096,90]
[356768185,1743145838803,-2000.0,0.00041096,90]
[356768186,1743145838812,-2000.0,0.00041096,90]
[356768187,1743145838822,-2000.0,0.00041096,90]
[356768188,1743145838831,-2000.0,0.00041096,90]
[356768189,1743145838840,-2000.0,0.00041096,90]
[356768190,1743145838849,-2000.0,0.00041096,90]
[356768191,1743145838858,-2000.0,0.00041096,90]
[356768192,1743145838868,-2000.0,0.00041096,90]
[356768193,1743145838877,-1500.36133717,0.00041096,90]
[356768194,1743145838889,-499.63866283,0.00041096,90]
[356768195,1743145838898,-542.64696201,0.00041096,90]
[356768196,1743145838910,-612.58427774,0.00041096,90]
[356768197,1743145838920,-844.76876025,0.00041096,90]
[356768198,1743145838930,-2000.0,0.00041096,90]
[356768199,1743145838940,-745.75036587,0.00041096,90]
[356768200,1743145838952,-1254.24963413,0.00041096,90]
[356768201,1743145838964,-2000.0,0.00041096,90]
[356768202,1743145838974,-1752.69920634,0.00041096,90]
[356768203,1743145838986,-247.30079366,0.00041096,90]
[356768204,1743145838996,-2000.0,0.00041096,90]
[356768205,1743145839006,-1264.64920634,0.00041096,90]
[356768206,1743145839016,-435.6299975,0.00041096,90]
[356768207,1743145839031,-299.72079616,0.00041096,90]
[356768208,1743145839040,-592.27920384,0.00041096,90]
[356768211,1743145840473,-1407.72079616,0.00041096,90]
[356768212,1743145840483,-148.77205399,0.00041096,90]
[356768213,1743145840495,-503.32934959,0.00041096,90]
[356768214,1743145840766,-1347.89859642,0.00041096,90]
[356768215,1743145840776,-1587.27839574,0.00041096,90]
[356768216,1743145840788,-412.72160426,0.00041096,90]
[356768217,1743145840797,-1510.39339577,0.00041096,90]
[356768218,1743145840817,-284.74170922,0.00041096,90]
[356768261,1743145844695,-204.86489501,0.00041096,90]
[356768263,1743145844704,-357.57726865,0.00041096,90]
[356768265,1743145845423,-1642.42273135,0.00041096,90]
[356768266,1743145845435,-2000.0,0.00041096,90]
[356768267,1743145845444,-2000.0,0.00041096,90]
[356768268,1743145845454,-2000.0,0.00041096,90]
[356768269,1743145845465,-2000.0,0.00041096,90]
[356768270,1743145845476,-2000.0,0.00041096,90]
[356768271,1743145845485,-2000.0,0.00041096,90]
[356768272,1743145845494,-585.0,0.00041096,90]
[356768273,1743145845503,-159.0,0.000413,120]
[356768274,1743145845517,-760.90208007,0.00041624,15]
[356768275,1743145845526,-154.74,0.00041908,2]
[356768276,1743145845535,-200.0,0.00042,120]
[356768277,1743145845544,-2265.80921449,0.00042,5]
[356768278,1743145845555,-200.0,0.00042413,120]
[356768279,1743145845564,-760.90208007,0.00042606,15]
[356768280,1743145845574,-518.33,0.00042901,2]
[356768281,1743145845583,-700.0,0.00043,2]
[356768282,1743145845594,-152.0,0.00043135,3]
[356768283,1743145845604,-154.74,0.00043195,2]
[356768284,1743145845614,-2000.0,0.000433,2]
[356768285,1743145845623,-760.90208007,0.00043588,15]
[356768286,1743145845633,-1505.21147083,0.0004386,15]
[356768287,1743145845642,-260.29907753,0.00044,120]
[356768288,1743145845651,-207.0,0.00044,120]
[356768289,1743145845661,-354.55086309,0.00044045,10]
[356768290,1743145845670,-1000.0,0.00044238,2]
[356768291,1743145845679,-609.34,0.00044239,2]
[356768292,1743145845689,-178.32,0.00044239,2]
[356768293,1743145845698,-1505.21147074,0.00044376,15]
[356768294,1743145845708,-154.74,0.00044482,2]
[356768295,1743145845717,-760.90208007,0.00044571,15]
[356768296,1743145845728,-200.0,0.00044584,120]
[356768297,1743145845738,-159.0,0.000446,120]
[356768298,1743145845747,-1505.21147074,0.00044891,15]
[356768299,1743145845756,-158.13202,0.00044949,66]
[356768300,1743145845766,-47560.42991826,0.00045,45]
[356768301,1743145845784,-373.9601431,0.00045,45]
[356768304,1743145846249,-1526.46167943,0.00045,45]
[356768305,1743145846262,-539.14825921,0.00045,45]
[356768306,1743145846271,-750.0,0.00045,2]
[356768307,1743145846280,-942.03622492,0.00045085,17]
[356768308,1743145846290,-518.33,0.00045165,2]
[356768309,1743145846299,-151.0,0.00045185,14]
[356768310,1743145846308,-151.0,0.00045185,14]
[356768311,1743145846317,-151.0,0.00045185,14]
[356768312,1743145846326,-164.533923,0.00045185,14]
[356768313,1743145846335,-164.533923,0.00045185,14]
[356768314,1743145846344,-2169.47258157,0.00045195,3]
[356768315,1743145846355,-814.508016,0.00045195,3]
[356768316,1743145846366,-3825.13300562,0.00045195,3]
[356768317,1743145846377,-300.948,0.00045195,3]
[356768318,1743145846389,-846.7111798,0.00045195,3]
[356768319,1743145846486,-1130.07324647,0.00045195,3]
[356768320,1743145846544,-1130.78065668,0.00045195,3]
[356768321,1743145846556,-519.69795335,0.00045195,3]
[356768322,1743145846596,-560.82499528,0.00045195,3]
[356768323,1743145846608,-574.07750108,0.00045195,3]
[356768324,1743145846620,-17283.33362881,0.00045195,3]
[356768325,1743145846654,-3088.4339,0.00045195,3]
[356768326,1743145846666,-1148.05025784,0.00045195,3]
[356768327,1743145846676,-500.0,0.00045205,3]
[356768328,1743145846685,-500.0,0.00045205,3]
[356768329,1743145846694,-503.62390062,0.00045205,3]
[356768330,1743145846703,-500.0,0.00045205,120]
[356768331,1743145846713,-258.12243426,0.00045205,120]
[356768339,1743146876924,544.57628016,0.0001,2]
[356768376,1743147031540,-1053.64802959,0.000149,2]
[356768378,1743147031551,-531.40936261,0.00014999,2]
[356768379,1743147031560,-4503.56147299,0.00015,2]
[356768380,1743147031572,-257.4,0.00015,2]
[356768381,1743147031664,-21455.5,0.00015,2]
[356768382,1743147031675,-250.0,0.00015,2]
[356768383,1743147031689,-261.18393514,0.00015,2]
[356768384,1743147031800,-860.7284241,0.00015,2]
[356768639,1743147037455,-3461.19222412,0.00015,2]
[356768640,1743147037722,-258609.63782198,0.00015,2]
[356768641,1743147037770,-7680.40000004,0.00015,2]
[356768642,1743147037782,-2240.6891849,0.00015,2]
[356768656,1743147039759,-500.0,0.00015,2]
[356768657,1743147039951,-505.62377968,0.00015,2]
[356768658,1743147039963,-9959.70392964,0.00015,2]
[356768659,1743147040011,-11029.70364524,0.00015,2]
[356768660,1743147040143,-43121.24017483,0.00015,2]
[356768700,1743147042582,-3108.694505,0.00015,2]
[356768701,1743147042808,-4724.6094924,0.00015,2]
[356768702,1743147042820,-337.5900015,0.00015,2]
[356768706,1743147045433,-687.73161468,0.00015,2]
[356768707,1743147045765,-312.40865386,0.00015,2]
[356768709,1743147314776,-300.0,0.00014999,2]
[356768710,1743147319650,-300.0,0.00015,2]
[356768711,1743147321057,-300.0,0.00015,2]
[356768717,1743147640210,158.13203,0.00015,13]
[356769038,1743148231744,-257.5688795,0.00014999,2]
[356769040,1743148231902,-242.4311205,0.00014999,2]
[356769041,1743148231912,-106.76768705,0.00014999,2]
[356769042,1743148231925,-100.732313,0.00014999,2]
[356769043,1743148231935,-300.0,0.00014999,2]
[356769044,1743148231944,-11620.99466194,0.00015,2]
[356769601,1743148237756,-94050.68610179,0.00015,2]
[356769603,1743148237765,-17949.31439821,0.00015,2]
[356769619,1743148237917,-5136.0,0.00015,2]
[356769834,1743148239918,-491.20963464,0.00015,2]
[356769836,1743148239929,-275.472,0.00015,2]
[356769838,1743148239941,-381.124,0.00015,2]
[356769840,1743148239952,-3886.71683102,0.00015,2]
[356769843,1743148239962,-8399.06551744,0.00016,2]
[356769845,1743148239971,-420.0,0.00016416,2]
[356769847,1743148239981,-587.0,0.00017966,2]
[356769848,1743148239990,-190.43202372,0.00018,2]
[356769850,1743148239999,-384.23500979,0.000188,2]
[356769852,1743148240009,-1000.0,0.000189,2]
[356769854,1743148240018,-6009.9354,0.000189,2]
[356769856,1743148240027,-605.7979,0.000189,2]
[356769858,1743148240036,-3617.6643,0.000189,2]
[356769860,1743148240046,-17650.15301801,0.00019,2]
[356769863,1743148240057,-706.59410884,0.00019,2]
[356769873,1743148240148,-32871.46104575,0.00019,2]
[356769875,1743148240158,-969.91,0.00019,2]
[356769877,1743148240167,-158.87,0.00019,2]
[356769879,1743148240177,-823.0,0.00019663,2]
[356769881,1743148240186,-1152.0,0.0002152,2]
[356769883,1743148240195,-384.23500976,0.00021922,2]
[356769885,1743148240204,-1613.0,0.00023552,2]
[356769887,1743148240214,-250.0,0.00025,2]
[356769889,1743148240223,-384.23500976,0.00025044,2]
[356769891,1743148240233,-274.0,0.00025777,2]
[356769893,1743148240245,-150.0,0.00026696,7]
[356769895,1743148240255,-109.63123449,0.00026732,14]
[356770182,1743148242945,-232.39176551,0.00026732,14]
[356770184,1743148242955,-350.158,0.00026762,2]
[356770186,1743148242964,-4001.657,0.00026762,2]
[356770188,1743148242974,-1016.0,0.00026762,2]
[356770190,1743148242983,-151.0,0.00026762,2]
[356770192,1743148242993,-157.91,0.00026849,2]
[356770194,1743148243003,-487.47,0.00026849,2]
[356770196,1743148243012,-250.0,0.00026871,2]
[356770198,1743148243021,-300.0,0.00027,2]
[356770200,1743148243031,-466.03,0.00027154,2]
[356770202,1743148243041,-381.12,0.00027397,2]
[356770204,1743148243050,-445.21,0.00027428,2]
[356770206,1743148243059,-161.35,0.00027584,30]
[356770208,1743148243070,-244.85,0.00027742,2]
[356770210,1743148243080,-384.23500976,0.00028167,2]
[356770212,1743148243089,-1000.0,0.00028365,2]
[356770214,1743148243099,-14883.39847608,0.00028837,2]
[356770217,1743148243111,-9016.60152392,0.00028837,2]
[356770219,1743148243120,-350.0,0.00029,2]
[356770221,1743148243130,-445.21,0.00029692,2]
[356770223,1743148243139,-1014.0,0.00029762,2]
[356770225,1743148243148,-151.0,0.00029762,2]
[356770227,1743148243158,-42516.06018575,0.0003,30]
[356770346,1743148244141,-289.99999949,0.0003,30]
[356770348,1743148244152,-427.835,0.0003,30]
[356770350,1743148244163,-165023.98963858,0.0003,30]
[356770352,1743148244174,-8730.9939824,0.0003,30]
[356770489,1743148245598,-475.24258118,0.0003,30]
[356770501,1743148245691,-1708.844342,0.0003,30]
[356770512,1743148245784,-827.0342706,0.0003,30]
[356770514,1743148245794,-543.54000529,0.0003,30]
[356770516,1743148245806,-312.38336393,0.0003,30]
[356770518,1743148245818,-5044.04662978,0.0003,30]
[356770520,1743148245827,-1320.27581378,0.000309,2]
[356770522,1743148245836,-400.0,0.00031,2]
[356770524,1743148245846,-384.23500976,0.00031289,2]
[356770526,1743148245857,-29415.28675221,0.0003154,2]
[356770528,1743148245868,-33398.33871335,0.0003154,2]
[356770553,1743148246100,-8563.092,0.0003154,2]
[356770555,1743148246112,-6557.65804133,0.0003154,2]
[356771521,1743148398562,-644.3683,0.000149,2]
[356771546,1743149431772,-419.7149,0.000188,2]
[356771548,1743149431782,-1000.0,0.000189,2]
[356771550,1743149431791,-9616.06005328,0.000189,2]
[356771558,1743149431855,-7931.01144672,0.000189,2]
[356771560,1743149431864,-250.0,0.00025,2]
[356771562,1743149431874,-273.618,0.0002673,14]
[356771564,1743149431883,-158.5,0.00026849,2]
[356771566,1743149431892,-300.0,0.00027,2]
[356771568,1743149431902,-201.11368246,0.00028415,2]
[356771569,1743149431911,-644.234,0.00028416,2]
[356771570,1743149431921,-2038.0,0.00028416,2]
[356771571,1743149431931,-1282.0,0.00028416,2]
[356771572,1743149431942,-573.0,0.00028416,2]
[356771573,1743149431952,-1422.0,0.00028416,2]
[356771574,1743149431962,-1274.0,0.00028416,2]
[356771575,1743149431971,-788.0,0.00028416,2]
[356771576,1743149431981,-542.0,0.00028416,2]
[356771577,1743149431991,-1431.0,0.00028416,2]
[356771578,1743149432002,-604.13486322,0.00028416,2]
[356771579,1743149432019,-302.86513678,0.00028416,2]
[356771580,1743149432029,-200.60842912,0.00028416,2]
[356771581,1743149432042,-310.31,0.00028416,2]
[356771582,1743149432055,-1117.616495,0.00028416,2]
[356771583,1743149432075,-450.0,0.00028416,2]
[356771584,1743149432085,-261.36076216,0.00028416,2]
[356771625,1743149437782,-1595.74317713,0.00028416,2]
[356771626,1743149438038,-151.36113659,0.00028416,2]
[356771627,1743149438049,-151.0,0.00028416,2]
[356771628,1743149438059,-3943.0,0.00028416,2]
[356771629,1743149438069,-1015.0,0.00028416,2]
[356771630,1743149438079,-350.0,0.00029,2]
[356771631,1743149438088,-400.0,0.00031,2]